Cogmind - Beta 15 @@@ ROGUE MODE // 2025.09.06 @ 06:28:56 Player: BVrutally Odd Result: Destroyed by G-34 Mercenary with Small Laser Performance ------------- Evolutions (0) 0 Regions Visited (1) 200 Robots Destroyed (1) 5 Value Destroyed (10) 10 Prototype IDs (0) 0 Alien Tech Used (0) 0 Bonus (-5984) -5984 TOTAL SCORE: -5769 Bonus ------- Devolution -6000 Gauntlet 3 No Salvage 10 Pure Core 3 Cogmind --------- Core Integrity 0/800 Matter 300/300 Energy 100/100 System Corruption 7% Temperature Cool (6) Movement Core (50) Location -10/Materials Parts ------- > --- POWER (3) -------- (None) > --- PROPULSION (5) --- (None) > --- UTILITY (7) ------ (None) > --- WEAPON (5) ------- (None) > --- INVENTORY (0) ---- (None) Peak State ------------ > --- POWER ------------ (None) > --- PROPULSION ------- Light Treads Light Treads > --- UTILITY ---------- (None) > --- WEAPON ----------- (None) > --- INVENTORY -------- (None) [Rating: 2] Favorites ----------- Power None Propulsion Light Treads Treads Light Treads Utility None Weapon None Build | -11 -10 ------- Run | Yrd Mat Slots Evolved . | . . Power . | . . Propulsion . | . . Utility . | . . Weapon . | . . Parts Attached 2 | 2 . Power . | . . Engine . | . . Core . | . . Reactor . | . . Propulsion 2 | 2 . Treads 2 | 2 . Leg . | . . Wheel . | . . Hover . | . . Flight . | . . Utility . | . . Device . | . . Storage . | . . Processor . | . . Hackware . | . . Protection . | . . Artifact . | . . Weapon . | . . Energy Gun . | . . Energy Cannon . | . . Ballistic Gun . | . . Ballistic Cannon . | . . Launcher . | . . Special Weapon . | . . Impact Weapon . | . . Slashing Weapon . | . . Piercing Weapon . | . . Special Melee Weapon . | . . Unidentified Prototypes . | . . Parts Lost 2 | . 2 Power . | . . Propulsion 2 | . 2 Utility . | . . Weapon . | . . Highest Loss Streak 2 | . 2 To Critical Strikes . | . . Average Backups . | . . Power . | . . Propulsion . | . . Utility . | . . Weapon . | . . Tool/Special . | . . Unused Backups . | . . Power . | . . Propulsion . | . . Utility . | . . Weapon . | . . Tool/Special . | . . Average Slot Usage (%) 6 | . 6 Treads 6 | . 6 Peak Build Rating 2 | 2 2 Average Rating 1 | . 1 On Entrance 1 | . 2 Naked Turns 81 | . 81 Heaviest Build . | . . Greatest Support 3 | 3 3 Greatest Overweight (x) . | . . Average Overweight (x) . | . . Largest Inventory Capacity . | . . Average Capacity . | . . Most Carried . | . . Average Carried . | . . Final Capacity . | . . Final Carried . | . . Class Distribution -------------------- 100% | Mutant Dominant Class ---------------- Mutant | -10/Materials Resources | -11 -10 ----------- Run | Yrd Mat Matter Collected 220 | 220 . Remotely . | . . Salvage Created 20 | . 20 Parts . | . . Haulers Intercepted . | . . Recyclers Shooed . | . . Parts Field Recycled . | . . Retrieved Matter . | . . Parts Self-Destructed . | . . Prevented . | . . Kills | -11 -10 ------- Run | Yrd Mat Combat Hostiles Destroyed 1 | . 1 Melee 1 | . 1 Classes Destroyed 1 | . 1 Swarmer 1 | . 1 Best Kill Streak 1 | . 1 Combat Bots Only 1 | . 1 Max Kills in Single Turn 1 | . 1 Gunslinging . | . . Exploded . | . . Melee 1 | . 1 Uniques/NPCs Destroyed . | . . Combat | -11 -10 -------- Run | Yrd Mat Hostile Shots Fired 193 | . 193 Missed 83 | . 83 Hits 110 | . 110 Projectile 110 | . 110 Damage Taken 1066 | . 1066 Core 809 | . 809 Absorbed by Shields . | . . Core Remaining (%) 100 | 100 . Volleys Fired . | . . Largest . | . . Hottest . | . . Shots Fired . | . . Gun . | . . Cannon . | . . Launcher . | . . Special . | . . Kinetic . | . . Thermal . | . . Explosive . | . . Electromagnetic . | . . Robot Hit Streak . | . . Robot Miss Streak . | . . Penetration Max . | . . Secondary Targets . | . . Shots Hit Robots . | . . Core Hits 2 | . 2 Critical Kills . | . . Critical Parts Destroyed . | . . Critical Strikes . | . . Melee Attacks . | . . Impact . | . . Slashing . | . . Piercing . | . . Sneak Attacks . | . . Combat Hostiles . | . . Follow-up Attacks . | . . Damage Inflicted 74 | . 74 Guns . | . . Cannons . | . . Explosions . | . . Melee . | . . Ramming 74 | . 74 Kinetic . | . . Thermal . | . . Explosive . | . . Electromagnetic . | . . Impact . | . . Slashing . | . . Piercing . | . . Highest Corruption 7 | . 7 Average Corruption 3 | . 3 Corruption Purged . | . . Corruption Blocked . | . . Effects 2 | . 2 Matter Fused 1 | . 1 Data Loss (minor) 1 | . 1 Overload Shots . | . . Overflow Damage . | . . Projectiles . | . . Explosions . | . . Melee . | . . Knockbacks 1 | . 1 Impact 1 | . 1 Kinetic . | . . Secondary . | . . Self-Inflicted Damage 33 | . 33 Shots . | . . Rammed 24 | . 24 Targets Rammed 24 | . 24 Kicked . | . . Crushed . | . . Highest Temperature 7 | . 7 Average Temperature 5 | . 5 Received Heat Transfer 294 | . 294 Siege Activations . | . . Martial Activations . | . . Shielding Activations . | . . Robots Disrupted . | . . Combat Hostiles . | . . Robots Corrupted . | . . Combat Hostiles . | . . Parts Fried . | . . Impact Corruptions . | . . Robots Melted . | . . Combat Hostiles . | . . Parts Melted . | . . Heat Transferred . | . . Parts Sabotaged . | . . Parts Stolen . | . . Parts Stripped . | . . Power Chain Reactions . | . . Alert | -11 -10 ------- Run | Yrd Mat Maximum Alert Level . | . . Low Security (%) 100 | 100 100 Level 1 . | . . Level 2 . | . . Level 3 . | . . Level 4 . | . . Level 5 . | . . High Security . | . . Max Security . | . . Peak Influence 105 | . 105 Initial . | . . Average 18 | . 21 Influence Increases 180 | . 180 Destroy 0b10 Robot/C 20 | . 20 Destroy Leader 10 | . 10 Partial Spotted 15 | . 15 Lose Combat Pursuer 135 | . 135 Influence Decreases 45 | . 45 Time Decay 45 | . 45 Squads Dispatched 3 | . 3 Investigation 3 | . 3 Extermination . | . . Reinforcement . | . . Assault . | . . Garrison . | . . Intercept . | . . Searches Triggered . | . . Construction Impeded . | . . Haulers Reinforced . | . . Active Scanning Responses . | . . Cargo Convoy Interrupts . | . . Stealth | -11 -10 --------- Run | Yrd Mat Distress Signals 1 | . 1 Communications Jammed . | . . Distress Signals . | . . Times Spotted 20 | . 20 Peak Tracking Total 11 | . 11 Tactical Retreats 3 | . 3 Traps | -11 -10 ------- Run | Yrd Mat Traps Triggered 7 | . 7 Indirectly . | . . Trap Hack Attempts . | . . Triggered . | . . Disarmed . | . . Reprogrammed . | . . Reused . | . . Traps Extracted . | . . Installed . | . . Triggered . | . . Machines | -11 -10 ---------- Run | Yrd Mat Machines Disabled . | . . Max in Single Turn . | . . Machines Repaired . | . . Machines Dismantled . | . . Machines Sabotaged . | . . Overloaded Fab Kills . | . . Hacking | -11 -10 --------- Run | Yrd Mat Machines Accessed 2 | . 2 Terminals 1 | . 1 Fabricators . | . . Repair Stations . | . . Recycling Units 1 | . 1 Scanalyzers . | . . Garrison Access . | . . Total Hacks 5 | . 5 Successful . | . . Failed 5 | . 5 Catastrophic . | . . Database Lockouts . | . . Manual . | . . Terminals 1 | . 1 Fabricators . | . . Repair Stations . | . . Recycling Units 4 | . 4 Scanalyzers . | . . Garrison Access . | . . Terminal Hacks . | . . Fabricator Hacks . | . . Repair Station Hacks . | . . Recycling Unit Hacks . | . . Scanalyzer . | . . Garrison Access Hacks . | . . Unauthorized Hacks . | . . Terminals . | . . Fabricators . | . . Repair Stations . | . . Recycling Units . | . . Scanalyzers . | . . Garrison Access . | . . Data Cores Recovered . | . . Used . | . . Hacking Detections 2 | . 2 Full Trace Events . | . . Feedback Events . | . . Feedback Blocked . | . . Robot Schematics Acquired . | . . Robots Built . | . . Authchips . | . . Time . | . . Total Robot Build Rating . | . . Part Schematics Acquired . | . . Parts Built . | . . Authchips . | . . Time . | . . Total Part Build Rating . | . . Parts Repaired . | . . Time . | . . Parts Recycled . | . . Recycled Matter . | . . Retrieved Matter . | . . Retrieved Components . | . . Parts Scanalyzed . | . . Part Schematics Acquired . | . . Parts Damaged . | . . Bothacking | -11 -10 ------------ Run | Yrd Mat Used RIF Installer . | . . Robots Hacked . | . . Non-combat . | . . Combat . | . . Robot Hacks Applied . | . . Relay Couplers Released . | . . Fabnet Peak Effective % . | . . Robots Rewired . | . . Allies Hacked . | . . Hacks Repelled . | . . Allies | -11 -10 -------- Run | Yrd Mat Total Allies . | . . Largest Group . | . . Highest-Rated Group . | . . Highest-Rated Ally . | . . Total Orders . | . . Ally Attacks . | . . Total Damage . | . . Kills . | . . Allies Corrupted . | . . Allies Melted . | . . Intel | -11 -10 ------- Run | Yrd Mat Active Infowar (turns) . | . . Robot Analysis Total . | . . Derelict Logs Recovered . | . . Drone Launches . | . . Drone Recoveries . | . . Exploration | -11 -10 ------------- Run | Yrd Mat Turns Passed 217 | 27 190 Spaces Moved 370 | 48 322 Core 370 | 48 322 Treads . | . . Legs . | . . Wheels . | . . Hover . | . . Flight . | . . Fastest Speed 50 | 50 50 Average Speed 50 | 50 50 Slowest Speed 50 | 50 50 Overloaded Moves . | . . Propulsion Burnouts . | . . Robots Hopped . | . . Potential Cave-ins . | . . Cave-ins Triggered . | . . Exploration Rate (%) 40 | 3 78 Regions Visited 1 Branch Regions . Pre-discovered Areas . | . . Known Exits Taken . | . . Unknown Exits Taken 1 | 1 . Scrap Searched . | . . Spaces Dug . | . . Terrain Destroyed . | . . Melee . | . . Projectile . | . . AOE . | . . Terrain Rammed . | . . Walls Destroyed . | . . Machines Disabled . | . . Actions | -11 -10 --------- Run | Yrd Mat Total 399 | 49 350 Wait 6 | . 6 Move 368 | 47 321 Hop . | . . Pick Up . | . . Fast Attach 3 | 2 1 Attach . | . . Detach . | . . Swap . | . . Drop . | . . Fire . | . . Melee . | . . Ram 22 | . 22 Kick . | . . Crush . | . . Escape Stasis . | . . Rewire . | . . Trap . | . . Miscellaneous . | . . Route ------- -11/Scrapyard -10/Materials History --------- Turn | Location | Event 5 | -11/Scrapyard | Discovered new exit (range 16) 28 | -11/Scrapyard | Entered Materials 90 | -10/Materials | Discovered new exit (range 5) 122 | -10/Materials | Discovered new exit (range 14) 176 | -10/Materials | Discovered new exit (range 6) 184 | -10/Materials | Core integrity fell below 50% 191 | -10/Materials | Discovered new exit (range 10) 210 | -10/Materials | Core integrity fell below 20% 218 | -10/Materials | Destroyed by G-34 Mercenary with Small Laser Last Messages --------------- 00187_ T-07 Excavator is excavating. 00190_ Triggered Shock Trap. 00190_ The floor emits a surge of raw power. 00190_ System corrupted (+2). 00191_ EXIT=FOUND (Blocked) 00197_ Slammed into S-10 Pest. 00200_ Destabilizing: Core damaged (-8). 00200_ S-10 Pest destroyed. 00201_ Slammed into S-10 Pest. 00202_ Destabilizing: System corrupted (+2). 00203_ Slammed into S-10 Pest. 00207_ S-10 Pest destroyed. 00209_ M-13 Machinist fits Backup Laser I on S-10 Pest. 00210_ Slammed into S-10 Pest. 00211_ Destabilizing: System corrupted (+1). 00212_ Slammed into S-10 Pest. 00212_ S-10 Pest destroyed. 00213_ Slammed into S-10 Pest. 00218_ S-10 Pest destroyed. Map ----- +----------------------------------------------------+ | | | | | | | | | ??????????????????????????????????#############??? | | ??????????????????????????????????# """"" #??? | | ??????????????????????????????????# = """"" #??? | | ??????????????????????????????????# """"" #??? | | ####??????????????????????????????# #??? | | """##?????????????????????????????# /#??? | | !!!"##????????????????????????????# #??? | | ""#########????????????????????# #??? | | #? ! #????????????????????######+######### | | < #? ! #??????????############??# % | | #?? ???????????# # #### ######## | | #?? ???????????# < # + #??????? | | #???? ??###???????#%% # # #??????? | | #????? ?? #???????#% / # ######## | | #######+#### ###?????#%% # + | | #?????#%% #?? ### | | #?????#%% #??#####?# | | #?????#% #??? ??# % | | #######+#### #?????#%g #???""" ?# """ """ | | #???? ### #?????#g %#??""""" # """ """ | | ### # ####### % #??""""" # """ """ | | + ! # @ %#??""""" + | | ### # ^ % #? """ # | | #?# "Y" # ^ #" # | | #?# """ # ###w#######" ! ?### ####### | | #?############ # ???????# ???##+####### | | # #????????????# # ????????######????# """ # | | # ####?????????# #???????????????????# "Y" # | | + +?????????# #???????????????????# # | | # #?????????# #???????????????????# *# | | # ##+#####+#? #???????????????????# # | | + #? #???????????????????# """ + | | ## ^ #? #???????????????????# """ # | | ## ^ #? ????????????????????# """ # | | / #? #???????????????????# # | | # """ """ #? #???????????????????##+####### | | # """ """ #? #????????????????????# #?????# | | #! """ """ ## #????????????????????# #?????# | | ## % #????????????????????# #?????# | | % #??????????##+##?????# ####### | | #+######### #??????????# ####### | | ???????# #??????????# | | ???????# #???######## ########## | | ??????# #???# # #????######+##### | | ?######/#### #???# # #????# ## | | # # ##### """ # #????# """ | +----------------------------------------------------+ Best States ------------- Heat Dissipation 20 Energy Generation 5 Energy Capacity 100 Matter Stores 300 Matter Capacity 300 Sight Range 16 Terrain Scan Density 10 Evasion (%) 50 Item Schematics ----------------- None Robot Schematics ------------------ None Fabricated ------------ Nothing Repaired ---------- Nothing Alien Tech Used ----------------- None Achievements -------------- None Challenges ------------ Devolution Gauntlet No Salvage Pure Core Scavenger Simple Hacker Sticky Parts Trapped Game ------ Seed SurgeProjectionMagmablaster Manual? 0 Play Time 00:06:11 Cumulative 483.8 hours Start 2025.09.06 @ 06:25:28 End 2025.09.06 @ 06:28:56 Sessions 1 Manual Loads 0 Difficulty Rogue Special Mode None Game No. 211 Rogue 127 Adventurer 32 Explorer 52 Win Type - Total 55 Types 27/6/9/1/1/2/6/1/1/1 Lore% 95 Gallery% 93 Achievement% 86 Wizard Run 0 Options --------- Layout 2 ASCII 0 Keyboard 0 Movement Mouse Keybinds 1 Fullscreen 1 Font 32/Tamsyn Map View 50x44 Zoom Use 0% Tactical HUD 1 Map Filters NONE Filters NONE Steam 1 RUN: abdd6bbc-e47e-42b8-9492-a10e201a57ed